bitfinex-derivatives/quotes_SOLF0:USTF0_20241026
["timestamp","ask_amount","ask_price","bid_price","bid_amount"]
[1729923600920,4.5,167.12,167.09,11.31488972]
[1729923605821,2.9949,167.14,167.09,11.31488972]
[1729923606024,4.48,167.12,167.09,11.31488972]
[1729923606414,4.48,167.13,167.12,2.9953]
[1729923606621,4.48,167.14,167.12,2.9953]
[1729923607517,4.48,167.14,167.11,11.31458972]
[1729923611643,4.48,167.14,167.12,3.1973394]
[1729923611939,4.48,167.14,167.11,11.31458972]
[1729923612341,4.48,167.14,167.12,3.19733457]
[1729923612542,4.48,167.14,167.11,11.31458972]
[1729923612742,4.48,167.14,167.12,3.19733491]
[1729923612937,4.48,167.14,167.11,11.31458972]
[1729923613141,4.48,167.14,167.12,3.19733262]
[1729923613338,4.48,167.14,167.11,11.31458972]
[1729923614838,4.48,167.17,167.15,2.9946]
[1729923615044,4.48,167.17,167.13,8.31918972]
[1729923615437,4.48,167.17,167.14,2.9947]
[1729923616647,8.31918972,167.19,167.14,2.9947]
[1729923616947,4.48,167.16,167.14,2.9947]
[1729923617845,4.48,167.16,167.13,8.31918972]
[1729923618046,4.48,167.16,167.14,2.9949]
[1729923619146,4.48,167.16,167.14,11.31408972]
[1729923619549,4.48,167.17,167.14,11.31408972]
[1729923623142,8.31918972,167.15,167.1,2.9956]
[1729923623348,8.31918972,167.14,167.11,3.19646345]
[1729923623547,8.31918972,167.14,167.1,8.31918972]
[1729923623748,8.31918972,167.14,167.11,6.19189666]
[1729923623951,8.31918972,167.14,167.11,2.9953]
[1729923628464,11.31378972,167.16,167.11,11.31448972]
[1729923631365,4.48,167.15,167.11,11.31448972]
[1729923635273,4.48,167.15,167.11,2.9953]
[1729923635571,4.48,167.15,167.07,139.5082534]
[1729923635868,8.31918972,167.1,167.07,139.5082534]
[1729923636058,4.48,167.09,167.07,139.5082534]
[1729923636258,4.48,167.09,167.08,3.1980968]
[1729923637166,4.48,167.09,167.08,6.1940968]
[1729923639060,4.48,167.1,167.08,6.1940968]
[1729923639263,4.48,167.1,167.08,2.996]
[1729923640060,4.48,167.1,167.08,11.31518972]
[1729923649171,1.2967,167.14,167.09,11.51812927]
[1729923649172,4.48,167.14,167.09,11.51812927]
[1729923649371,4.48,167.14,167.13,8.31918972]
[1729923649572,4.48,167.14,167.11,11.31448972]
[1729923650460,4.48,167.14,167.12,2.9952]
[1729923651771,4.48,167.14,167.12,8.31918972]
[1729923651964,4.48,167.14,167.06,143.33814229]
[1729923652170,8.31918972,167.13,167.08,8.31918972]
[1729923652359,8.31918972,167.13,167.09,4.69699269]
[1729923652562,8.31918972,167.13,167.1,3.19885482]
[1729923652763,8.31918972,167.13,167.08,8.31918972]
[1729923652959,8.31918972,167.13,167.09,3.19919312]
[1729923653175,8.31918972,167.13,167.1,3.19919312]
[1729923653469,8.31918972,167.13,167.08,11.31498972]
[1729923653670,8.31918972,167.13,167.09,3.19934949]
[1729923653970,8.31918972,167.13,167.09,8.31918972]
[1729923654172,8.31918972,167.13,167.1,3.19940935]
[1729923654367,8.31918972,167.13,167.09,8.31918972]
[1729923654568,8.31918972,167.13,167.1,3.19956799]
[1729923654773,8.31918972,167.13,167.09,8.31918972]
[1729923654973,8.31918972,167.13,167.1,3.19956833]
[1729923655276,8.31918972,167.13,167.09,8.31918972]
[1729923655566,8.31918972,167.13,167.1,3.19974303]
[1729923655768,8.31918972,167.13,167.09,8.31918972]
[1729923655969,8.31918972,167.13,167.1,3.19974292]
[1729923656176,8.31918972,167.13,167.09,8.31918972]
[1729923656472,8.31918972,167.13,167.1,3.19991693]
[1729923656669,8.31918972,167.13,167.09,8.31918972]
[1729923656865,8.31918972,167.13,167.1,3.19991697]
[1729923657061,8.31918972,167.13,167.09,11.31498972]
[1729923657571,8.31918972,167.13,167.1,6.40010857]
[1729923657871,8.31918972,167.12,167.1,3.2000086]
[1729923659374,11.31448972,167.12,167.1,3.2000086]
[1729923662370,4.48,167.14,167.11,8.31918972]
[1729923664577,4.48,167.14,167.1,3.2000086]
[1729923664578,4.48,167.14,167.13,8.31918972]
[1729923665572,67.45198472,167.29,167.13,11.51999457]
[1729923665775,12.79918972,167.22,167.17,8.31918972]
[1729923665974,4.48,167.21,167.17,11.31348972]
[1729923666571,1.2199,167.25,167.19,8.31918972]
[1729923666774,4.48,167.24,167.19,8.31918972]
[1729923666974,4.48,167.24,167.21,8.31918972]
[1729923667679,4.48,167.25,167.21,8.31918972]
[1729923669076,7.473,167.25,167.21,8.31918972]
[1729923669275,7.473,167.25,167.14,3.8741]
[1729923669276,4.48,167.25,167.14,3.8741]
[1729923669574,11.31228972,167.24,167.19,8.31918972]
[1729923669979,11.31228972,167.24,167.19,11.31318972]
[1729923672275,4.48,167.25,167.14,3.8741]
[1729923672580,8.31918972,167.22,167.17,2.9944]
[1729923672781,4.48,167.21,167.17,2.9944]
[1729923674072,4.48,167.21,167.14,3.8741]
[1729923674073,8.31918972,167.2,167.14,3.8741]
[1729923674277,8.31918972,167.17,167.12,8.31918972]
[1729923674481,8.31918972,167.17,167.13,3.19297757]
[1729923674680,8.31918972,167.17,167.12,8.31918972]
[1729923674880,8.31918972,167.17,167.13,3.19301514]
[1729923675080,12.79918972,167.17,167.12,8.31918972]
[1729923675584,8.31918972,167.15,167.11,2.9954]
[1729923675786,8.31918972,167.14,167.07,8.3331]
[1729923675988,8.31918972,167.14,167.08,13.01083496]
[1729923676182,8.31918972,167.14,167.09,4.69164524]
[1729923676380,8.31918972,167.14,167.1,3.19353859]
[1729923676684,8.31918972,167.14,167.09,2.9957]
[1729923676886,8.31918972,167.14,167.1,3.19367965]
[1729923677082,8.31918972,167.14,167.09,2.9957]
[1729923677390,8.31918972,167.14,167.1,3.19354396]
[1729923677589,8.31918972,167.14,167.09,2.9957]
[1729923677885,8.31918972,167.12,167.08,11.31508972]
[1729923678189,4.48,167.13,167.09,3.19373613]
[1729923678482,4.48,167.13,167.09,2.9958]
[1729923679485,4.48,167.13,167.1,3.19373043]
[1729923679685,4.48,167.13,167.09,2.9958]
[1729923679889,4.48,167.13,167.1,3.19361474]
[1729923680089,4.48,167.13,167.09,2.9958]
[1729923680287,4.48,167.13,167.1,3.19361552]
[1729923680491,4.48,167.13,167.09,11.31498972]
[1729923680788,4.48,167.13,167.1,3.19361375]
[1729923680989,4.48,167.13,167.09,11.31498972]
[1729923681291,4.48,167.13,167.1,3.19361492]
[1729923681491,4.48,167.13,167.09,11.31498972]
[1729923681695,4.48,167.13,167.1,3.19361506]
[1729923681989,4.48,167.13,167.1,2.9956]
[1729923683191,4.48,167.13,167.11,2.9954]
[1729923686997,4.48,167.13,167.09,2.9957]
[1729923687294,4.48,167.13,167.07,12.17228972]
[1729923687500,4.48,167.13,167.08,4.6918882]
[1729923687699,4.48,167.13,167.07,12.17228972]
[1729923687893,4.48,167.13,167.08,3.19393622]
[1729923688094,4.48,167.13,167.07,12.17228972]
[1729923688299,4.48,167.13,167.09,2.9958]
[1729923690493,4.48,167.13,167.11,2.9954]
[1729923691598,4.48,167.14,167.11,2.9954]
[1729923692796,2.96634103,167.28,167.13,8.31918972]
[1729923693099,8.31918972,167.14,167.08,8.31918972]
[1729923693303,8.31918972,167.14,167.09,3.193702]
[1729923693497,8.31918972,167.14,167.11,2.9954]
[1729923695797,8.31918972,167.14,167.09,8.31918972]
[1729923696004,12.79918972,167.15,167.11,2.9953]
[1729923697501,8.31918972,167.16,167.13,2.995]
[1729923701109,8.31918972,167.17,167.14,2.9949]
[1729923702604,7.4742,167.18,167.14,2.9949]
[1729923702908,8.31918972,167.17,167.14,2.9949]
[1729923703707,8.31918972,167.17,167.09,8.31918972]
[1729923703708,8.31918972,167.17,167.13,2.9951]
[1729923706418,8.31918972,167.15,167.13,2.9951]
[1729923725533,2.9953,167.12,167.07,5.5164]
[1729923725833,8.31918972,167.1,167.07,1.2616]
[1729923726026,8.31918972,167.1,167.03,4.48]
[1729923726226,8.31918972,167.1,167.06,2.9962]
[1729923727032,8.31918972,167.11,167.07,2.9961]
[1729923729231,7.4754,167.12,167.07,2.9961]
[1729923729431,15.79458972,167.12,167.07,2.9961]
[1729923730031,15.79458972,167.12,167.05,8.31918972]
[1729923730032,4.48,167.15,167.12,2.9952]
[1729923730334,4.48,167.15,167.1,8.31918972]
[1729923730728,8.31918972,167.14,167.1,8.31918972]
[1729923731343,8.31918972,167.14,167.11,2.9954]
[1729923733243,4.48,167.15,167.1,8.31918972]
[1729923733536,12.79918972,167.15,167.1,8.31918972]
[1729923735330,12.79918972,167.15,167.12,2.9952]
[1729923736835,12.79918972,167.15,167.11,2.9953]
[1729923736836,4.48,167.15,167.11,2.9953]
[1729923737033,4.48,167.15,167.1,8.31918972]
[1729923737231,8.31918972,167.14,167.11,3.19715557]
[1729923737544,8.31918972,167.14,167.08,8.31918972]
[1729923737844,8.31918972,167.14,167.09,4.69647817]
[1729923738045,8.31918972,167.14,167.1,3.19831847]
[1729923738342,8.31918972,167.14,167.11,6.19371847]
[1729923738534,8.31918972,167.14,167.11,2.9954]
[1729923738736,8.31918972,167.14,167.08,8.31918972]
[1729923738934,8.31918972,167.12,167.09,4.69792248]
[1729923739135,8.31918972,167.12,167.07,8.31918972]
[1729923739136,8.31918972,167.12,167.1,3.19986748]
[1729923739338,8.31918972,167.12,167.07,8.31918972]
[1729923739541,8.31918972,167.12,167.09,2.9958]
[1729923739741,8.31918972,167.11,167.05,10.86198972]
[1729923740042,8.31918972,167.11,167.06,4.69938839]
[1729923740239,8.31918972,167.11,167.07,4.69938839]
[1729923740446,8.31918972,167.11,167.08,4.69938839]
[1729923740638,8.31918972,167.11,167.09,3.20101379]
[1729923740838,8.31918972,167.11,167.05,10.86198972]
[1729923741046,8.31918972,167.11,167.06,4.70042629]
[1729923741345,8.31918972,167.11,167.07,7.69642629]
[1729923741545,8.31918972,167.11,167.08,4.70042629]
[1729923741849,8.31918972,167.11,167.09,3.20204555]
[1729923742141,8.31918972,167.11,167.1,3.20204555]
[1729923742742,8.31918972,167.11,167.07,2.996]
[1729923742939,8.31918972,167.11,167.08,4.7023089]
[1729923743137,8.31918972,167.11,167.09,4.7023089]
[1729923743342,8.31918972,167.11,167.1,3.2039418]
[1729923744038,11.31458972,167.12,167.1,3.2039418]
[1729923744244,11.31458972,167.12,167.08,2.996]
[1729923744441,11.31458972,167.12,167.09,4.70296558]
[1729923744637,11.31458972,167.12,167.1,3.20459021]
[1729923744833,11.31458972,167.12,167.08,2.996]
[1729923745040,11.31458972,167.12,167.09,4.70296524]
[1729923745348,11.31458972,167.12,167.1,3.20461837]
[1729923745644,11.31458972,167.12,167.08,2.996]
[1729923745844,11.31458972,167.12,167.09,4.70266349]
[1729923746034,11.31458972,167.12,167.1,3.20431509]
[1729923746238,11.31458972,167.12,167.08,2.996]
[1729923746447,11.31458972,167.12,167.09,4.70253387]
[1729923746648,11.31458972,167.12,167.1,3.204187]
[1729923746852,11.31458972,167.12,167.08,2.996]
[1729923747051,11.31458972,167.12,167.09,4.70253391]
[1729923747240,11.31458972,167.12,167.1,3.20418704]
[1729923747444,11.31458972,167.12,167.08,2.996]
[1729923747638,11.31458972,167.12,167.09,4.70240745]
[1729923747843,11.31458972,167.12,167.1,3.20405905]
[1729923748046,11.31458972,167.12,167.08,2.996]
[1729923748351,8.31918972,167.12,167.09,4.70234902]
[1729923748538,8.31918972,167.12,167.1,3.20400215]
[1729923748743,8.31918972,167.12,167.08,2.996]
[1729923748940,250.98949524,167.17,167.09,4.70228304]
[1729923749144,8.31918972,167.14,167.1,6.19943617]
[1729923749350,8.31918972,167.14,167.11,3.20393617]
[1729923749549,8.31918972,167.14,167.1,2.9955]
[1729923749749,8.31918972,167.14,167.11,3.20378533]
[1729923749953,8.31918972,167.14,167.1,2.9955]
[1729923750152,8.31918972,167.14,167.11,3.20368223]
[1729923750345,8.31918972,167.14,167.1,2.9955]
[1729923750550,8.31918972,167.14,167.11,3.20361638]
[1729923750750,8.31918972,167.14,167.1,2.9955]
[1729923750953,8.31918972,167.14,167.11,3.20361638]
[1729923751252,8.31918972,167.14,167.1,2.9955]
[1729923751449,8.31918972,167.14,167.11,3.20357046]
[1729923751652,8.31918972,167.14,167.1,2.9955]
[1729923751854,8.31918972,167.14,167.11,3.20354185]
[1729923752047,8.31918972,167.14,167.1,2.9955]
[1729923752249,8.31918972,167.14,167.11,3.20361234]
[1729923752450,8.31918972,167.14,167.1,2.9955]
[1729923752649,8.31918972,167.14,167.11,3.20355038]
[1729923752850,11.31448972,167.12,167.08,2.9958]
[1729923753050,15.79448972,167.12,167.09,4.70184388]
[1729923753251,15.79448972,167.12,167.1,3.20355075]
[1729923753450,15.79448972,167.12,167.07,2.996]
[1729923753754,12.79918972,167.12,167.08,4.70194244]
[1729923753952,12.79918972,167.12,167.09,4.70194244]
[1729923754146,4.48,167.12,167.1,3.20358445]
[1729923754347,4.48,167.12,167.11,3.20330742]
[1729923754654,4.48,167.12,167.11,3.20323651]
[1729923757644,4.48,167.12,167.1,2.9956]
[1729923757849,4.48,167.12,167.11,3.20314149]
[1729923760464,4.48,167.12,167.09,2.9956]
[1729923760653,4.48,167.12,167.1,3.20310731]
[1729923760957,4.48,167.12,167.11,3.20310731]
[1729923763359,4.48,167.12,167.09,2.9956]
[1729923763555,4.48,167.12,167.1,3.2031054]
[1729923763755,4.48,167.12,167.09,2.9956]
[1729923764067,4.48,167.12,167.1,3.20310566]
[1729923764256,4.48,167.12,167.09,2.9956]
[1729923764753,4.48,167.12,167.1,3.20306129]
[1729923764955,15.79418972,167.14,167.09,2.9956]
[1729923765155,15.79418972,167.14,167.1,3.20308632]
[1729923765458,15.79418972,167.14,167.09,2.9956]
[1729923765655,15.79418972,167.14,167.1,3.20304754]
[1729923765855,15.79418972,167.14,167.09,2.9956]
[1729923766055,15.79418972,167.14,167.1,3.20304726]
[1729923766263,15.79418972,167.14,167.09,2.9956]
[1729923766458,15.79418972,167.14,167.1,3.20302944]
[1729923766760,15.79418972,167.14,167.09,2.9956]
[1729923766969,15.79418972,167.14,167.1,3.20302944]
[1729923767263,15.79418972,167.14,167.09,2.9956]
[1729923767560,15.79418972,167.14,167.1,3.20310067]
[1729923767749,15.79418972,167.14,167.09,2.9956]
[1729923767955,15.79418972,167.14,167.1,3.20310124]
[1729923768263,15.79418972,167.14,167.09,2.9956]
[1729923768463,15.79418972,167.14,167.1,3.20337031]
[1729923768657,15.79418972,167.14,167.09,2.9956]
[1729923768855,15.79418972,167.14,167.1,3.20337038]
[1729923769055,15.79418972,167.14,167.09,2.9956]
[1729923769261,15.79418972,167.14,167.1,3.20340481]
[1729923769461,15.79418972,167.14,167.09,2.9956]
[1729923769656,15.79418972,167.14,167.1,3.20351696]
[1729923769851,15.79418972,167.14,167.09,2.9956]
[1729923770059,15.79418972,167.14,167.1,3.20351694]
[1729923770259,15.79418972,167.14,167.09,2.9956]
[1729923770457,15.79418972,167.14,167.1,3.20369856]
[1729923770655,15.79418972,167.14,167.09,2.9956]
[1729923770856,15.79418972,167.14,167.1,3.20369855]
[1729923771057,15.79418972,167.14,167.09,2.9956]
[1729923771257,12.79918972,167.14,167.1,3.20373395]
[1729923771462,2.9951,167.13,167.11,3.20373395]
[1729923771660,2.9951,167.13,167.09,2.9957]
[1729923772067,2.9951,167.13,167.1,4.70215558]
[1729923772257,2.9951,167.13,167.11,3.20392958]
[1729923772458,15.79408972,167.14,167.09,2.9957]
[1729923772666,15.79408972,167.14,167.1,4.70219637]
[1729923772853,15.79408972,167.14,167.11,3.20395168]
[1729923773058,15.79408972,167.14,167.09,2.9957]
[1729923773262,15.79408972,167.14,167.1,4.70232037]
[1729923773566,15.79408972,167.14,167.11,3.20405469]
[1729923773758,15.79408972,167.14,167.09,2.9957]
[1729923773958,15.79408972,167.14,167.1,4.70244137]
[1729923774160,15.79408972,167.14,167.11,3.20419591]
[1729923774362,15.79408972,167.14,167.09,2.9957]
[1729923774553,15.79408972,167.14,167.1,4.702763]
[1729923774758,15.79408972,167.14,167.11,3.20449732]
[1729923775056,15.79408972,167.14,167.09,2.9957]
[1729923775253,15.79408972,167.14,167.1,4.70281805]
[1729923775466,15.79408972,167.14,167.09,2.9957]
[1729923775664,15.79408972,167.14,167.1,4.70308606]
[1729923775864,15.79408972,167.14,167.11,3.20479342]
[1729923776065,15.79408972,167.14,167.09,2.9957]
[1729923776262,15.79408972,167.14,167.1,4.70319331]
[1729923776564,15.79408972,167.14,167.11,3.20489913]
[1729923776767,15.79408972,167.14,167.09,2.9957]
[1729923776961,15.79408972,167.14,167.1,3.20527217]
[1729923777165,15.79408972,167.14,167.11,3.20527217]
[1729923777367,15.79408972,167.14,167.09,2.9957]
[1729923777560,15.79408972,167.14,167.1,4.70384135]
[1729923777765,15.79408972,167.14,167.11,3.20552174]
[1729923778066,15.79408972,167.14,167.09,2.9957]
[1729923778367,15.79408972,167.14,167.1,4.70382189]
[1729923778561,15.79408972,167.14,167.11,3.20550228]
[1729923778762,15.79408972,167.14,167.09,2.9957]
[1729923778961,15.79408972,167.14,167.1,4.70398297]
[1729923779162,15.79408972,167.14,167.11,3.20569033]
[1729923779364,15.79408972,167.14,167.09,2.9957]
[1729923779564,15.79408972,167.14,167.1,4.70434834]
[1729923779770,15.79408972,167.14,167.09,2.9957]
[1729923779771,15.79408972,167.14,167.11,3.2060557]
[1729923779975,15.79408972,167.14,167.09,2.9957]
[1729923780168,15.79408972,167.14,167.1,4.70441355]
[1729923780367,15.79408972,167.14,167.11,3.2060872]
[1729923780666,15.79408972,167.14,167.09,2.9957]
[1729923780968,15.79408972,167.14,167.1,4.70467559]
[1729923781169,15.79408972,167.14,167.11,3.20635598]
[1729923781368,15.79408972,167.14,167.09,2.9957]
[1729923781574,15.79408972,167.14,167.1,4.70485514]
[1729923781768,15.79408972,167.14,167.11,3.20653553]
[1729923782065,15.79408972,167.14,167.09,2.9957]
[1729923782270,15.79408972,167.14,167.1,4.70487157]
[1729923782573,15.79408972,167.14,167.11,3.2065587]
[1729923782868,15.79408972,167.14,167.09,2.9957]
[1729923783071,15.79408972,167.14,167.1,4.70509494]
[1729923783276,15.79408972,167.14,167.11,3.20677686]
[1729923783462,15.79408972,167.14,167.12,3.20677686]
[1729923783668,15.79408972,167.14,167.09,2.9957]
[1729923783972,12.79918972,167.14,167.1,4.70534416]
[1729923784168,8.31918972,167.12,167.11,3.20702455]
[1729923784373,4.48,167.14,167.11,3.20702455]
[1729923784576,12.79918972,167.14,167.09,8.31918972]
[1729923784867,12.79918972,167.14,167.1,4.70552932]
[1729923785172,12.79918972,167.14,167.11,3.20719922]
[1729923785373,15.79408972,167.14,167.09,11.31488972]
[1729923785577,15.79408972,167.14,167.1,4.70540092]
[1729923785771,15.79408972,167.14,167.11,3.20706929]
[1729923786073,15.79408972,167.14,167.09,2.9957]
[1729923786275,15.79408972,167.14,167.1,4.7055368]
[1729923786576,12.79918972,167.14,167.11,3.20720389]
[1729923786777,12.79918972,167.14,167.07,8.31918972]
[1729923787068,12.79918972,167.14,167.08,4.70539894]
[1729923787274,15.79418972,167.14,167.09,7.70119894]
[1729923787468,15.79418972,167.14,167.1,4.70539894]
[1729923787772,15.79418972,167.14,167.11,3.20706685]
[1729923787974,15.79418972,167.14,167.09,2.9958]
[1729923788174,15.79418972,167.14,167.1,4.70535466]
[1729923788375,15.79418972,167.14,167.11,3.20702541]
[1729923788570,15.79418972,167.14,167.09,2.9958]
[1729923788769,15.79418972,167.14,167.1,4.70537847]
[1729923788970,15.79418972,167.14,167.11,3.20704661]
[1729923789176,15.79418972,167.14,167.09,2.9958]
[1729923789476,15.79418972,167.14,167.1,4.70537911]
[1729923789677,15.79418972,167.14,167.11,3.20704725]
[1729923789876,15.79418972,167.14,167.09,2.9958]
[1729923790076,15.79418972,167.14,167.1,4.70564158]
[1729923790278,4.48,167.14,167.11,3.20730972]
[1729923790481,4.48,167.14,167.12,3.20730972]
[1729923790675,4.48,167.14,167.1,2.9956]
[1729923790884,4.48,167.14,167.11,3.20758885]
[1729923791176,4.48,167.14,167.12,3.20758885]
[1729923791374,7.4749,167.14,167.1,2.9956]
[1729923791575,7.4749,167.14,167.11,3.20786765]
[1729923791777,7.4749,167.14,167.12,3.20786765]
[1729923792077,7.4749,167.14,167.1,2.9956]
[1729923792276,7.4749,167.14,167.11,3.20813321]
[1729923792470,7.4749,167.14,167.07,8.31918972]
[1729923792676,7.4749,167.14,167.09,2.9958]
[1729923792874,7.4749,167.14,167.1,4.70647582]
[1729923793179,7.4749,167.14,167.11,4.70647582]
[1729923793380,15.79408972,167.14,167.12,3.20816142]
[1729923793583,15.79408972,167.14,167.09,2.9958]
[1729923793883,15.79408972,167.14,167.1,4.70660231]
[1729923794079,15.79408972,167.14,167.11,4.70660231]
[1729923794280,15.79408972,167.14,167.12,3.20834612]
[1729923794481,15.77408972,167.14,167.09,2.9958]
[1729923794683,15.77408972,167.14,167.1,4.70699122]
[1729923794877,15.77408972,167.14,167.11,3.20866487]
[1729923795078,15.77408972,167.14,167.12,3.20866487]
[1729923795381,15.77408972,167.14,167.09,2.9958]
[1729923795581,15.77408972,167.14,167.1,4.7069609]
[1729923795782,15.77408972,167.14,167.11,3.20864129]
[1729923795982,15.77408972,167.14,167.12,3.20864129]
[1729923796178,15.77408972,167.14,167.09,2.9958]
[1729923796484,15.77408972,167.14,167.1,4.70710995]
[1729923796682,15.77408972,167.14,167.11,4.70710995]
[1729923796887,15.77408972,167.14,167.12,3.20879034]
[1729923797086,15.77408972,167.14,167.09,2.9958]
[1729923797386,15.77408972,167.14,167.1,4.7071953]
[1729923797586,7.4549,167.14,167.11,4.7071953]
[1729923797787,15.77408972,167.14,167.12,3.20887569]
[1729923797987,15.77408972,167.14,167.1,2.9956]
[1729923798189,15.77408972,167.14,167.11,4.70726057]
[1729923798390,15.77408972,167.14,167.12,3.2089477]
[1729923798597,11.31408972,167.14,167.1,2.9956]
[1729923798889,15.77408972,167.14,167.11,4.70728199]
[1729923799088,15.77408972,167.14,167.12,3.20896238]
[1729923799292,15.77408972,167.14,167.1,2.9956]
[1729923799489,15.77408972,167.14,167.11,3.20909834]
[1729923799689,15.77408972,167.14,167.1,2.9956]
[1729923799890,15.77408972,167.14,167.11,3.20911712]
[1729923800086,15.77408972,167.14,167.1,2.9956]
[1729923800285,15.77408972,167.14,167.11,3.20910411]
[1729923800490,15.77408972,167.14,167.12,3.20910411]
[1729923800685,15.77408972,167.14,167.1,2.9956]
[1729923800892,15.77408972,167.14,167.11,3.20915996]
[1729923801093,15.77408972,167.14,167.12,3.20915996]
[1729923801293,15.77408972,167.14,167.1,2.9956]
[1729923801592,15.77408972,167.14,167.11,3.20917331]
[1729923801791,15.77408972,167.14,167.12,3.20917331]
[1729923802091,15.77408972,167.14,167.1,2.9956]
[1729923802292,15.77408972,167.14,167.11,3.20932949]
[1729923802492,15.77408972,167.14,167.12,3.20932949]
[1729923802692,15.77408972,167.14,167.1,2.9956]
[1729923802895,15.77408972,167.14,167.11,3.20928461]
[1729923803093,15.77408972,167.14,167.12,3.20928461]
[1729923803296,15.77408972,167.14,167.1,2.9956]
[1729923803493,15.77408972,167.14,167.11,3.20943935]
[1729923803795,15.77408972,167.14,167.12,3.20943935]
[1729923803994,15.77408972,167.14,167.1,2.9956]
[1729923804196,15.77408972,167.14,167.11,3.20959927]
[1729923804389,15.77408972,167.14,167.1,2.9956]
[1729923804390,15.77408972,167.14,167.12,3.20959927]
[1729923804692,15.77408972,167.14,167.1,2.9956]
[1729923804896,15.77408972,167.14,167.11,3.20962266]
[1729923805093,15.77408972,167.14,167.12,3.20962266]
[1729923805297,15.77408972,167.14,167.1,2.9956]
[1729923805499,15.77408972,167.14,167.11,3.20985951]
[1729923805700,15.77408972,167.14,167.12,3.20985951]
[1729923805899,15.77408972,167.14,167.1,2.9956]
[1729923806200,15.77408972,167.14,167.11,3.20982059]
[1729923806400,15.77408972,167.14,167.12,3.20982059]
[1729923806598,15.77408972,167.14,167.1,2.9956]
[1729923806799,15.77408972,167.14,167.11,3.2102151]
[1729923806998,15.77408972,167.14,167.12,3.2102151]
[1729923807202,15.77408972,167.14,167.1,2.9956]
[1729923807400,15.77408972,167.14,167.11,3.21069015]
[1729923807603,15.77408972,167.14,167.12,3.21069015]
[1729923807802,15.77408972,167.14,167.1,2.9956]
[1729923808003,15.77408972,167.14,167.11,3.21064487]
[1729923808205,15.77408972,167.14,167.12,3.21064487]
[1729923808502,15.77408972,167.14,167.09,2.9957]
[1729923808704,15.77408972,167.14,167.1,4.7089901]
[1729923808896,15.77408972,167.14,167.11,3.21060237]
[1729923809092,15.77408972,167.14,167.12,3.21060237]
[1729923809304,15.77408972,167.14,167.09,2.9957]
[1729923809601,15.77408972,167.14,167.1,4.70901604]
[1729923809803,15.77408972,167.14,167.11,4.70901604]
[1729923810003,15.77408972,167.14,167.12,3.21062831]
[1729923810304,15.77408972,167.14,167.09,2.9957]
[1729923810605,15.77408972,167.14,167.1,4.70895757]
[1729923810900,15.77408972,167.14,167.11,1.49838099]
[1729923811110,15.77408972,167.14,167.09,2.9957]
[1729923811407,15.77408972,167.14,167.12,3.21061967]
[1729923811701,15.77408972,167.14,167.09,2.9957]
[1729923811904,15.77408972,167.14,167.1,4.70900201]
[1729923812104,15.77408972,167.14,167.11,3.21061428]
[1729923812301,15.77408972,167.14,167.12,3.21061428]
[1729923812510,7.4549,167.14,167.13,3.21061428]
[1729923814495,7.4549,167.14,167.09,11.31488972]
[1729923814894,7.4549,167.14,167.1,4.70865306]
[1729923815101,7.4549,167.14,167.11,4.70865306]
[1729923815305,249.67129524,167.17,167.12,3.21035196]
[1729923815500,249.67129524,167.17,167.13,6.20535196]
[1729923815701,249.67129524,167.17,167.14,3.21000279]
[1729923815896,249.67129524,167.17,167.13,2.995]
[1729923816205,249.67129524,167.17,167.14,6.2050623]
[1729923816405,249.67129524,167.17,167.15,3.2101623]
[1729923816609,249.67129524,167.17,167.12,8.31918972]
[1729923816801,4.46,167.18,167.15,8.31918972]
[1729923816999,8.31918972,167.2,167.16,3.20956562]
[1729923817307,8.31918972,167.2,167.17,3.20956562]
[1729923817498,8.31918972,167.2,167.15,8.31918972]
[1729923817699,8.31918972,167.2,167.16,3.20763283]
[1729923817900,390.0749509,167.3,167.19,8.31918972]
[1729923818096,12.77918972,167.27,167.21,8.31918972]
[1729923818303,390.0749509,167.3,167.25,11.31198972]
[1729923818609,398.39414062,167.3,167.25,8.31918972]
[1729923819207,8.31918972,167.3,167.25,8.31918972]
[1729923819399,8.31918972,167.3,167.26,2.9927]
[1729923820600,4.46,167.31,167.26,2.9927]
[1729923820804,12.77918972,167.31,167.26,11.31188972]
[1729923822904,64.68,167.34,167.26,8.31918972]
[1729923823105,4.46,167.34,167.29,11.31138972]
[1729923823499,4.46,167.34,167.3,8.31918972]
[1729923823704,8.31918972,167.33,167.26,2.5121]
[1729923823906,11.31088972,167.32,167.26,10.83128972]
[1729923825312,11.31088972,167.32,167.26,13.82398972]
[1729923825512,8.31918972,167.3,167.26,2.5121]